bitfinex-derivatives/quotes_SOLF0:USTF0_20260304
["timestamp","ask_amount","ask_price","bid_price","bid_amount"]
[1772610296514,41.88761788,86.726,86.622,20.779]
[1772610296515,41.88761788,86.739,86.698,10.38]
[1772610296720,43.42032769,86.73,86.68,1.53270981]
[1772610298024,43.42032769,86.73,86.686,10.381]
[1772610299223,43.42032769,86.73,86.696,10.38]
[1772610299524,43.42032769,86.73,86.69,1.53270981]
[1772610299723,43.42032769,86.73,86.68,1.53270981]
[1772610300220,41.89582774,86.7,86.66,1.53270981]
[1772610300421,41.89582774,86.719,86.68,1.53270981]
[1772610300623,41.89582774,86.699,86.66,1.53270981]
[1772610300819,21.33299066,86.756,86.604,161.649]
[1772610300820,41.89582774,86.689,86.65,1.53270981]
[1772610301019,41.89582774,86.689,86.64,1.53270981]
[1772610301424,41.89582774,86.689,86.652,10.386]
[1772610301726,43.14803696,86.68,86.63,1.53270981]
[1772610302021,1.53270981,86.69,86.65,1.53270981]
[1772610303026,1.53270981,86.68,86.64,1.53270981]
[1772610303425,1.53270981,86.68,86.588,161.679]
[1772610303426,1.53270981,86.69,86.652,10.386]
[1772610303828,10.75605035,86.736,86.633,10.47547171]
[1772610304126,34.62285676,86.71,86.66,1.53270981]
[1772610304425,34.62285676,86.71,86.634,10.47547171]
[1772610304625,33.09014695,86.699,86.65,1.53270981]
[1772610305022,33.09014695,86.699,86.66,1.53270981]
[1772610305626,33.09014695,86.699,86.66,11.91770981]
[1772610305824,1.53270981,86.69,86.65,1.53270981]
[1772610306224,1.53270981,86.69,86.64,1.53270981]
[1772610306225,1.53270981,86.68,86.64,1.53270981]
[1772610306427,1.53270981,86.68,86.63,1.53270981]
[1772610306628,34.80388707,86.68,86.63,1.53270981]
[1772610307923,34.82101625,86.66,86.626,10.389]
[1772610308325,1.53270981,86.66,86.626,10.389]
[1772610308529,1.53270981,86.67,86.626,10.389]
[1772610308924,34.82101625,86.65,86.613,10.47547171]
[1772610309125,1.53270981,86.63,86.607,10.47547171]
[1772610309322,1.53270981,86.63,86.6,10.47547171]
[1772610309932,1.53270981,86.63,86.599,10.47547171]
[1772610310132,1.53270981,86.63,86.598,10.47547171]
[1772610310333,1.53270981,86.63,86.599,10.47547171]
[1772610310632,33.28830644,86.64,86.599,10.47547171]
[1772610310829,1.53270981,86.62,86.595,10.47547171]
[1772610311132,1.53270981,86.61,86.589,10.47547171]
[1772610311333,34.80995418,86.61,86.585,10.47547171]
[1772610311635,34.80995418,86.61,86.586,10.47547171]
[1772610312034,28.06315216,86.599,86.571,13.99346816]
[1772610312235,28.06315216,86.599,86.568,13.99346816]
[1772610312431,28.06315216,86.599,86.567,13.99346816]
[1772610312633,28.06315216,86.589,86.565,13.99346816]
[1772610313024,1.53270981,86.61,86.563,13.99346816]
[1772610313225,1.53270981,86.61,86.562,13.99346816]
[1772610313430,1.53270981,86.6,86.561,13.99346816]
[1772610314232,1.53270981,86.6,86.559,13.99346816]
[1772610314431,1.53270981,86.61,86.56,15.52617797]
[1772610314927,18.98722401,86.599,86.559,13.99346816]
[1772610315128,18.98722401,86.599,86.557,13.99346816]
[1772610316136,18.98722401,86.599,86.556,13.99346816]
[1772610316440,18.98722401,86.599,86.555,13.99346816]
[1772610317338,18.98722401,86.599,86.554,13.99346816]
[1772610318132,18.98722401,86.599,86.56,1.53270981]
[1772610318440,18.9750187,86.609,86.56,1.53270981]
[1772610319037,18.9750187,86.609,86.563,13.99346816]
[1772610319335,18.9747703,86.599,86.562,13.99346816]
[1772610319532,4.99311467,86.579,86.545,20.94697414]
[1772610319737,4.99311467,86.579,86.541,20.94697414]
[1772610319932,3.6494487,86.598,86.55,1.53270981]
[1772610320540,1.53270981,86.59,86.542,3.84070363]
[1772610320740,3.86519578,86.589,86.542,3.84070363]
[1772610321035,1.53270981,86.58,86.542,3.84070363]
[1772610321234,3.86519578,86.579,86.538,20.94697414]
[1772610321539,3.86519578,86.579,86.537,20.94697414]
[1772610322841,3.86519578,86.579,86.533,10.4]
[1772610323039,3.86519578,86.579,86.536,20.9508717]
[1772610323434,3.86519578,86.579,86.537,20.9508717]
[1772610324038,3.86519578,86.579,86.537,20.94028473]
[1772610324239,3.86519578,86.579,86.536,20.94028473]
[1772610324441,3.86519578,86.579,86.535,20.94028473]
[1772610325536,3.86519578,86.598,86.541,3.70796166]
[1772610325738,1.53270981,86.58,86.54,1.53270981]
[1772610325939,5.39790559,86.58,86.54,1.53270981]
[1772610326135,3.86519578,86.579,86.534,20.94028473]
[1772610326440,3.86519578,86.579,86.53,1.53270981]
[1772610326641,3.86519578,86.579,86.54,1.53270981]
[1772610329643,3.86519578,86.579,86.531,3.70796166]
[1772610329843,3.86519578,86.579,86.532,10.4]
[1772610330445,3.86519578,86.579,86.533,3.70796166]
[1772610330741,3.86519578,86.592,86.542,3.70796166]
[1772610330945,3.86519578,86.589,86.55,1.53270981]
[1772610331145,1.53270981,86.57,86.53,1.53270981]
[1772610331446,3.86519578,86.579,86.53,1.53270981]
[1772610332049,1.53270981,86.57,86.53,1.53270981]
[1772610332746,3.86519578,86.579,86.53,1.53270981]
[1772610333444,3.86519578,86.579,86.462,20.94028473]
[1772610333445,1.53270981,86.59,86.541,3.70796166]
[1772610333848,3.86519578,86.589,86.541,3.70796166]
[1772610334948,1.53270981,86.57,86.527,3.70796166]
[1772610335153,1.53270981,86.57,86.52,1.53270981]
[1772610335154,3.86519578,86.569,86.52,1.53270981]
[1772610337555,14.26119578,86.566,86.52,1.53270981]
[1772610338456,10.395,86.576,86.53,1.53270981]
[1772610338651,10.395,86.576,86.433,27.97877465]
[1772610338652,3.86519578,86.582,86.55,1.53270981]
[1772610338852,3.86519578,86.599,86.55,1.53270981]
[1772610339860,3.86519578,86.611,86.57,1.53270981]
[1772610340263,3.86519578,86.629,86.58,1.53270981]
[1772610340658,3.86519578,86.629,86.6,1.53270981]
[1772610340859,1.53270981,86.64,86.6,1.53270981]
[1772610341359,3.86519578,86.64,86.6,1.53270981]
[1772610341561,5.39790559,86.64,86.6,1.53270981]
[1772610341762,5.39790559,86.64,86.59,1.53270981]
[1772610342061,3.86519578,86.654,86.6,1.53270981]
[1772610342263,5.39790559,86.65,86.6,1.53270981]
[1772610342562,3.86519578,86.649,86.6,1.53270981]
[1772610342954,3.86519578,86.649,86.6,5.24067147]
[1772610343565,10.386,86.648,86.6,5.24067147]
[1772610344454,1.53270981,86.63,86.59,1.53270981]
[1772610344661,3.86519578,86.629,86.58,1.53270981]
[1772610344857,1.53270981,86.62,86.58,1.53270981]
[1772610346366,1.53270981,86.62,86.571,3.70796166]
[1772610347163,3.86519578,86.629,86.58,1.53270981]
[1772610347368,3.86519578,86.629,86.581,3.70796166]
[1772610348165,1.53270981,86.62,86.581,3.70796166]
[1772610348365,5.11871354,86.62,86.58,1.53270981]
[1772610348560,1.53270981,86.61,86.57,1.53270981]
[1772610348956,3.58600373,86.619,86.57,1.53270981]
[1772610349360,13.97600373,86.617,86.57,1.53270981]
[1772610351564,1.53270981,86.61,86.57,1.53270981]
[1772610351966,10.39,86.619,86.571,3.63419424]
[1772610352165,10.39,86.619,86.58,5.16690405]
[1772610352568,13.97400373,86.63,86.59,1.53270981]
[1772610352767,13.97400373,86.63,86.591,3.63419424]
[1772610353468,1.53270981,86.62,86.581,3.63419424]
[1772610353660,3.58600373,86.626,86.581,3.63419424]
[1772610353864,1.53270981,86.63,86.59,5.16690405]
[1772610354063,1.53270981,86.64,86.591,3.63419424]
[1772610354464,1.53539735,86.64,86.591,3.63419424]
[1772610354763,3.58600373,86.639,86.591,3.63419424]
[1772610356068,10.387,86.637,86.591,3.63419424]
[1772610356270,1.53539735,86.63,86.591,3.63419424]
[1772610357164,10.388,86.628,86.591,3.63419424]
[1772610357365,1.53539735,86.62,86.581,3.63419424]
[1772610357564,1.53539735,86.63,86.581,3.63419424]
[1772610358162,1.53539735,86.64,86.601,3.63419424]
[1772610359272,11.92239735,86.64,86.601,3.63419424]
[1772610360667,11.92239735,86.64,86.542,20.94028473]
[1772610360668,10.385,86.653,86.611,3.63419424]
[1772610360873,1.53539735,86.66,86.62,1.53539735]
[1772610361173,3.58600373,86.669,86.621,3.63419424]
[1772610361371,1.53539735,86.67,86.631,3.63419424]
[1772610362769,1.53539735,86.68,86.631,3.63419424]
[1772610362973,10.381,86.689,86.641,3.63419424]
[1772610363177,1.53539735,86.69,86.641,3.63419424]
[1772610364074,1.53539735,86.68,86.641,3.63419424]
[1772610365072,1.53539735,86.67,86.627,3.63419424]
[1772610366270,5.12140108,86.68,86.631,3.63419424]
[1772610368481,1.53539735,86.68,86.631,3.63419424]
[1772610368878,5.12140108,86.68,86.631,3.63419424]
[1772610369979,1.53539735,86.67,86.631,3.63419424]
[1772610370875,1.53539735,86.68,86.633,3.63419424]
[1772610371080,1.53539735,86.68,86.641,3.63419424]
[1772610371972,1.53539735,86.69,86.641,3.63419424]
[1772610372575,1.53539735,86.68,86.641,3.63419424]
[1772610375582,1.53539735,86.67,86.641,3.63419424]
[1772610375783,1.53539735,86.67,86.621,3.63419424]
[1772610375983,1.53539735,86.67,86.63,1.53539735]
[1772610376183,1.53539735,86.67,86.631,3.63419424]
[1772610380480,1.53539735,86.66,86.617,3.82850152]
[1772610380685,3.90406205,86.67,86.617,3.82850152]
[1772610380880,1.53539735,86.65,86.617,3.82850152]
[1772610381080,1.53539735,86.63,86.601,3.82850152]
[1772610381484,3.90406205,86.649,86.587,3.82850152]
[1772610381681,1.53539735,86.63,86.587,3.82850152]
[1772610381984,1.53539735,86.63,86.591,3.82850152]
[1772610382178,3.90406205,86.649,86.591,3.82850152]
[1772610382179,1.53539735,86.64,86.591,3.82850152]
[1772610383385,1.53539735,86.64,86.593,3.82850152]
[1772610384780,1.53539735,86.63,86.593,3.82850152]
[1772610385186,1.53539735,86.64,86.601,3.82850152]
[1772610385480,10.385,86.66,86.61,1.53539735]
[1772610385481,3.90406205,86.659,86.61,1.53539735]
[1772610385883,3.90406205,86.659,86.61,5.36389887]
[1772610386580,3.90406205,86.659,86.611,3.82850152]
[1772610387587,1.53539735,86.66,86.611,3.82850152]
[1772610388285,1.53539735,86.66,86.614,3.82850152]
[1772610389291,1.53539735,86.66,86.616,3.82850152]
[1772610390587,1.53539735,86.68,86.631,3.82850152]
[1772610392388,1.53539735,86.67,86.631,14.21650152]
[1772610392585,1.53539735,86.67,86.631,3.82850152]
[1772610392986,1.53539735,86.68,86.632,3.82850152]
[1772610393193,1.53539735,86.67,86.632,3.82850152]
[1772610395994,1.53539735,86.66,86.617,3.82850152]
[1772610396193,1.53539735,86.65,86.617,3.82850152]
[1772610396887,1.53539735,86.66,86.617,3.82850152]
[1772610398089,1.53539735,86.68,86.631,3.82850152]
[1772610398989,1.53539735,86.68,86.633,3.82850152]
[1772610399784,3.90406205,86.679,86.633,3.82850152]
[1772610400384,1.53539735,86.66,86.618,3.82850152]
[1772610400591,1.53539735,86.67,86.621,3.82850152]
[1772610401590,1.53539735,86.67,86.631,3.82850152]
[1772610401792,3.90406205,86.679,86.631,3.82850152]
[1772610403293,3.90406205,86.679,86.633,3.82850152]
[1772610403693,1.53539735,86.68,86.64,1.53539735]
[1772610403899,1.53539735,86.69,86.641,3.82850152]
[1772610404198,1.53539735,86.68,86.641,3.82850152]
[1772610406297,3.90406205,86.686,86.641,3.82850152]
[1772610406498,3.90406205,86.686,86.577,161.699]
[1772610406499,3.90406205,86.744,86.681,3.82850152]
[1772610406700,3.90406205,86.743,86.681,3.82850152]
[1772610406899,1.53539735,86.73,86.681,3.82850152]
[1772610407100,1.53539735,86.71,86.666,3.82850152]
[1772610407600,1.53539735,86.69,86.64,3.82850152]
[1772610407794,1.53539735,86.69,86.651,3.82850152]
[1772610407991,3.90406205,86.761,86.661,3.82850152]
[1772610408194,1.53539735,86.73,86.681,3.82530582]
[1772610408397,1.53539735,86.72,86.681,3.82530582]
[1772610409492,1.53539735,86.73,86.682,3.82530582]
[1772610409701,1.53539735,86.73,86.631,20.94028473]
[1772610409702,1.53539735,86.74,86.691,3.82530582]
[1772610409894,1.53539735,86.74,86.694,3.82530582]
[1772610410101,1.53539735,86.74,86.701,3.82530582]
[1772610410301,3.66144792,86.762,86.701,3.82530582]
[1772610410596,1.53539735,86.75,86.701,3.82530582]
[1772610411004,1.53539735,86.74,86.701,3.82530582]
[1772610411901,3.66144792,86.779,86.701,3.82530582]
[1772610412196,3.66144792,86.817,86.76,5.36070317]
[1772610412396,1.53539735,86.8,86.75,1.53539735]
[1772610412601,1.53539735,86.79,86.742,3.82530582]
[1772610412802,1.53539735,86.79,86.75,1.53539735]
[1772610412997,1.53539735,86.8,86.751,3.82530582]
[1772610413304,14.30379252,86.864,86.697,277.66562743]
[1772610413305,3.66144792,86.832,86.78,1.53539735]
[1772610413504,201.73463416,86.876,86.791,3.82530582]
[1772610413505,1.53539735,86.84,86.791,3.82530582]
[1772610413704,1.53539735,86.84,86.795,3.82530582]
[1772610414002,1.53539735,86.83,86.795,3.82530582]
[1772610414202,1.53539735,86.83,86.704,161.463]
[1772610414203,1.53539735,86.82,86.78,1.53539735]
[1772610414403,1.53539735,86.83,86.781,3.82530582]
[1772610414701,4.5490108,86.85,86.784,3.82530582]
[1772610415505,1.45270564,86.849,86.784,3.82530582]
[1772610415809,1.56040477,86.845,86.761,3.82530582]
[1772610416506,191.0260125,86.876,86.763,3.82530582]
[1772610416507,1.56040477,86.839,86.763,3.82530582]
[1772610416908,1.56040477,86.854,86.763,3.82530582]
[1772610417110,4.5495609,86.85,86.787,3.82530582]
[1772610417909,1.53626187,86.888,86.81,3.82530582]
[1772610418109,1.53626187,86.879,86.81,3.82530582]
[1772610418309,4.5495609,86.86,86.81,3.82530582]
[1772610418514,1.53626187,86.859,86.81,3.82530582]
[1772610419215,1.53626187,86.876,86.81,3.82530582]
[1772610419406,4.5495609,86.9,86.81,3.82530582]
[1772610419407,1.53626187,86.869,86.81,3.82530582]
[1772610419812,2.00395032,86.916,86.811,3.82530582]
[1772610419813,1.58347795,86.886,86.811,3.82530582]
[1772610420213,1.58347795,86.886,86.814,3.82530582]
[1772610420613,4.5495609,86.89,86.814,3.82530582]
[1772610421813,4.5495609,86.89,86.822,3.82530582]
[1772610422012,4.5495609,86.9,86.822,3.82530582]
[1772610422217,1.62017308,86.899,86.83,3.82530582]
[1772610422418,1.62017308,86.893,86.813,3.82530582]
[1772610422620,4.5495609,86.9,86.831,3.82530582]
[1772610422920,4.5495609,86.9,86.834,3.82530582]
[1772610423315,298.0,86.943,86.837,3.82530582]
[1772610423618,4.5495609,86.95,86.881,3.82530582]
[1772610423815,2.15204606,86.949,86.881,3.82530582]
[1772610424212,2.15204606,86.949,86.88,4.5495609]
[1772610424213,2.15204606,86.949,86.883,3.82530582]
[1772610424418,0.00021808,86.963,86.901,3.82530582]
[1772610424622,0.00021808,86.963,86.9,4.5495609]
[1772610424623,0.00021808,86.963,86.921,3.82530582]
[1772610425314,2.15204606,87.024,86.931,3.82530582]
[1772610425525,2.15204606,87.024,86.957,3.82530582]
[1772610425915,2.15204606,87.024,86.959,3.82530582]
[1772610426313,1.91102585,87.019,86.941,3.82530582]
[1772610426514,4.5495609,87.0,86.941,3.82530582]
[1772610426715,4.5495609,87.05,86.911,3.82530582]
[1772610426716,1.91102585,87.018,86.911,3.82530582]
[1772610426913,2.00051738,87.066,86.953,3.82530582]
[1772610426914,1.91102585,87.037,86.953,3.82530582]
[1772610427320,1.91102585,87.029,86.971,3.82530582]
[1772610427917,1.91102585,87.029,86.951,3.82530582]
[1772610428127,4.5495609,87.03,86.951,3.82530582]
[1772610428325,4.5495609,87.04,86.951,3.82530582]
[1772610428527,4.5495609,87.04,86.97,3.82530582]
[1772610428821,2.03848341,87.095,86.991,3.82530582]
[1772610429023,4.5495609,87.09,87.011,3.82530582]
[1772610429321,2.03848341,87.089,87.011,3.82530582]
[1772610429724,2.12009148,87.069,86.981,3.82530582]
[1772610429920,4.5495609,87.05,86.981,3.82530582]
[1772610430220,2.12009148,87.069,86.981,3.82530582]
[1772610430420,4.5495609,87.06,86.981,3.82530582]
[1772610430620,2.12009148,87.089,87.001,3.82530582]
[1772610430922,10.70862166,87.243,87.0,4.5495609]
[1772610430923,2.12009148,87.16,87.041,3.82530582]
[1772610431123,2.12009148,87.16,87.061,3.82530582]
[1772610431319,4.5495609,87.14,87.061,3.82530582]
[1772610431621,2.79893902,87.159,87.071,3.82530582]
[1772610431824,2.79893902,87.149,87.071,3.82530582]
[1772610432022,2.79893902,87.109,87.032,3.82530582]
[1772610432325,2.79893902,87.111,87.011,3.82530582]
[1772610432519,4.5495609,87.09,87.011,3.82530582]
[1772610432720,4.5495609,87.11,87.031,3.82530582]
[1772610433026,4.5495609,87.13,87.051,3.82530582]
[1772610433225,4.5495609,87.14,87.051,3.82530582]
[1772610433521,14.55062592,87.183,87.051,3.82530582]
[1772610433522,2.79893902,87.139,87.051,3.82530582]
[1772610433726,2.79893902,87.139,87.071,3.82530582]
[1772610433922,10.323,87.178,87.071,3.82530582]
[1772610433923,2.93534016,87.177,87.071,3.82530582]
[1772610434119,7.48490106,87.15,87.071,3.82530582]
[1772610434327,2.93534016,87.149,87.071,3.82530582]
[1772610435417,2.93534016,87.152,87.071,3.82530582]
[1772610435722,2.6882418,87.149,87.071,3.82530582]
[1772610436121,4.5495609,87.14,87.071,3.82530582]
[1772610436526,2.6882418,87.119,87.031,3.82530582]
[1772610436824,2.6882418,87.099,87.031,3.82530582]
[1772610437423,10.328,87.138,87.031,3.82530582]
[1772610437424,4.5495609,87.11,87.031,3.82530582]
[1772610437626,2.7311426,87.129,87.051,3.82530582]
[1772610438525,2.7311426,87.129,87.031,10.34]
[1772610438526,2.72693283,87.109,87.031,3.80597964]
[1772610438826,4.5495609,87.09,87.031,3.80597964]
[1772610439326,2.72734371,87.089,87.012,3.80597964]
[1772610439632,2.72734371,87.089,86.898,161.101]
[1772610439633,2.72281014,87.049,86.973,3.80597964]
[1772610440028,2.72281014,87.049,86.9,4.5495609]
[1772610440029,2.72281014,87.029,86.901,3.80597964]
[1772610440227,4.5495609,87.01,86.941,3.80597964]
[1772610440423,2.72281014,87.028,86.941,3.80597964]
[1772610440629,4.5495609,87.04,86.961,3.81788433]
[1772610440825,4.5495609,87.05,86.961,3.81788433]
[1772610441029,4.5495609,87.05,86.981,3.81788433]
[1772610441225,7.27603581,87.05,86.981,3.81788433]
[1772610441428,2.72647491,87.049,86.981,3.81788433]
[1772610442124,4.5495609,87.05,86.981,3.81788433]
[1772610442329,4.5495609,87.05,86.757,13.15768487]
[1772610442330,10.324,87.172,87.04,9.0991218]
[1772610442531,2.64656961,87.171,87.081,3.81788433]
[1772610442832,2.64656961,87.159,87.081,3.81788433]
[1772610443031,4.5495609,87.16,87.091,3.81788433]
[1772610443228,2.64656961,87.159,87.091,3.81788433]
[1772610443430,4.5495609,87.16,87.091,3.81788433]
[1772610444031,4.5495609,87.14,87.07,3.81788433]
[1772610444229,4.5495609,87.15,87.07,3.81788433]
[1772610444430,2.53415282,87.159,87.081,3.81788433]
[1772610444626,2.53415282,87.182,87.101,3.81788433]
[1772610444830,4.5495609,87.18,87.101,3.81788433]
[1772610445232,7.08371372,87.18,87.101,3.81788433]
[1772610445428,4.5495609,87.16,87.101,3.81788433]
[1772610445930,2.53415282,87.179,87.101,3.81788433]
[1772610446127,2.53415282,87.179,87.102,3.81788433]
[1772610448134,10.321,87.195,87.104,3.81788433]
[1772610448328,2.56719047,87.201,87.121,3.81788433]
[1772610448733,2.56719047,87.182,87.121,3.81788433]
[1772610448931,2.56719047,87.169,87.1,4.5495609]
[1772610449533,4.5495609,87.15,87.092,3.81788433]
[1772610452233,10.327,87.147,87.069,3.81788433]
[1772610452440,4.5495609,87.15,87.081,3.81788433]
[1772610452931,4.5495609,87.15,87.05,4.5495609]
[1772610452932,2.63006676,87.168,87.091,3.81788433]
[1772610453535,14.55062592,87.183,87.095,3.81788433]
[1772610453835,14.55062592,87.183,87.121,3.81788433]
[1772610454838,14.55062592,87.183,87.13,4.5495609]
[1772610455237,2.65499056,87.179,87.09,3.81788433]
[1772610455535,2.65499056,87.179,87.111,3.81788433]
[1772610455933,14.55062592,87.183,87.111,3.81788433]
[1772610456340,4.5495609,87.18,87.111,3.81788433]
[1772610456637,2.73073702,87.179,87.111,3.81788433]
[1772610456837,2.73073702,87.149,87.07,4.5495609]
[1772610457039,2.73073702,87.139,87.071,3.81788433]
[1772610458042,2.73257462,87.159,87.081,3.81788433]
[1772610458240,14.55062592,87.183,87.081,3.81788433]
[1772610458241,2.73257462,87.164,87.081,3.81788433]
[1772610458446,14.55062592,87.183,87.05,4.5495609]
[1772610458447,2.73257462,87.179,87.101,3.81788433]
[1772610458946,2.73257462,87.159,87.081,3.81788433]
[1772610459547,2.73257462,87.159,87.083,3.81788433]
[1772610460039,2.73257462,87.159,87.086,3.81788433]
[1772610460239,14.55062592,87.183,87.121,3.81788433]
[1772610460444,0.00062592,87.183,87.153,3.81788433]
[1772610461147,0.00062592,87.183,87.155,3.81788433]
[1772610462246,0.00062592,87.183,87.14,4.5495609]
[1772610462639,0.00062592,87.183,87.141,10.327]
[1772610462942,0.00062592,87.183,87.142,3.81788433]
[1772610463148,0.00062592,87.183,87.155,3.81788433]
[1772610463546,2.75604139,87.183,87.102,3.81788433]
[1772610463744,4.5495609,87.18,87.111,3.81788433]
[1772610464148,2.75604139,87.183,87.11,4.5495609]
[1772610464149,0.00062592,87.183,87.128,3.81788433]
[1772610464748,4.5495609,87.18,87.083,3.81788433]
[1772610465044,4.5495609,87.18,87.101,3.81788433]
[1772610465244,2.89095275,87.179,87.101,3.81788433]
[1772610465445,4.5495609,87.16,87.101,3.81788433]
[1772610465646,7.47299061,87.17,87.101,3.81788433]
[1772610466247,7.47299061,87.17,87.102,10.332]
[1772610466446,2.92342971,87.169,87.101,3.81788433]
[1772610467048,0.00062592,87.183,87.103,3.81788433]
[1772610467345,0.00062592,87.183,87.12,4.5495609]
[1772610467544,2.92342971,87.179,87.103,3.81788433]
[1772610467742,2.96058947,87.177,87.103,3.81788433]
[1772610468046,0.00062592,87.183,87.103,3.81788433]
[1772610468248,0.00062592,87.183,87.123,10.329]
[1772610468555,0.00062592,87.183,87.121,3.91808829]
[1772610469043,0.00062592,87.183,87.145,14.24508829]
[1772610469248,0.00062592,87.183,87.146,3.91808829]
[1772610469647,0.00062592,87.183,87.152,10.326]
[1772610469849,0.00062592,87.183,87.152,14.24408829]
[1772610470848,0.00062592,87.183,87.14,4.5495609]
[1772610471754,0.00062592,87.183,87.132,3.91808829]
[1772610472153,0.00062592,87.183,87.12,10.33]
[1772610472451,2.89577501,87.179,87.101,3.91808829]
[1772610472648,2.89577501,87.159,87.08,3.91808829]
[1772610472850,4.5495609,87.14,87.08,3.91808829]
[1772610473152,2.89577501,87.139,87.07,4.5495609]
[1772610473357,2.89577501,87.139,87.056,281.4780158]
[1772610473358,3.01525977,87.12,87.056,3.91808829]
[1772610474249,2.89577501,87.139,87.075,3.91808829]
[1772610474457,2.91417089,87.159,87.083,3.91808829]
[1772610476458,10.325,87.157,87.086,10.334]
[1772610476653,2.90002125,87.156,87.086,10.334]
[1772610477253,2.90002125,87.151,87.083,3.91808829]
[1772610477750,2.90002125,87.151,87.084,10.334]
[1772610479157,4.51694478,87.15,87.084,10.334]
[1772610479958,4.51694478,87.15,87.094,10.333]
[1772610480357,2.90295159,87.159,87.095,3.91808829]
[1772610480660,2.90295159,87.139,87.076,3.91808829]
[1772610481063,2.90295159,87.139,87.083,10.334]
[1772610481262,2.90295159,87.139,87.076,3.91808829]
[1772610481654,2.90295159,87.139,87.082,20.104]
[1772610481955,4.51694478,87.15,87.083,3.91808829]
[1772610482165,2.84494453,87.177,87.104,3.91808829]
[1772610482552,0.00062592,87.183,87.111,3.91808829]
[1772610482752,0.00062592,87.183,87.129,10.329]
[1772610483261,0.00062592,87.183,87.135,3.91808829]
[1772610484659,0.00062592,87.183,87.115,3.91808829]
[1772610485056,2.83841017,87.169,87.112,10.331]
[1772610485252,0.00062592,87.183,87.113,3.91808829]
[1772610485457,0.00062592,87.183,87.161,3.91808829]
[1772610485658,4.83433229,87.256,87.179,3.91808829]
[1772610485659,10.315,87.249,87.179,3.91808829]
[1772610485854,2.85440111,87.239,87.179,3.91808829]
[1772610486054,2.85440111,87.239,87.17,4.51694478]
[1772610486055,2.85440111,87.239,87.156,3.91808829]
[1772610486364,2.85440111,87.236,87.158,10.325]
[1772610486662,10.318,87.223,87.158,10.325]
[1772610486858,2.85440111,87.236,87.158,10.325]
[1772610487054,4.51694478,87.22,87.156,3.91808829]
[1772610487255,2.85440111,87.236,87.156,3.91808829]
[1772610487953,2.89676731,87.234,87.168,10.324]
[1772610488153,2.89676731,87.234,87.15,4.51694478]
[1772610488154,2.89676731,87.255,87.171,3.91808829]
[1772610488563,13.21076731,87.254,87.18,10.323]
[1772610488755,2.89676731,87.253,87.18,10.323]
[1772610488959,4.51694478,87.27,87.191,3.91808829]
[1772610489157,2.89676731,87.268,87.191,3.91808829]
[1772610489361,2.89676731,87.289,87.211,3.91808829]
[1772610490262,2.89676731,87.289,87.227,10.317]
[1772610490467,2.92766938,87.319,87.231,3.91808829]
[1772610490658,2.92766938,87.319,87.2,4.51694478]
[1772610490659,2.92766938,87.319,87.241,3.91808829]
[1772610491062,4.51694478,87.3,87.241,3.91808829]
[1772610491467,2.92766938,87.299,87.22,8.43503307]
[1772610491973,4.51694478,87.28,87.22,3.91808829]
[1772610492263,13.76273276,87.345,87.21,4.51694478]
[1772610492264,2.87642651,87.36,87.271,3.91808829]
[1772610492464,2.87642651,87.36,87.291,3.91808829]
[1772610492666,2.87642651,87.36,87.296,10.309]
[1772610492865,2.87642651,87.359,87.29,4.51694478]
[1772610493069,2.87642651,87.359,87.27,8.43503307]
[1772610493369,2.87642651,87.359,87.29,10.31]
[1772610493667,2.87642651,87.359,87.277,3.91808829]
[1772610493867,4.51694478,87.32,87.262,3.91808829]
[1772610494171,4.51694478,87.3,87.221,3.91808829]
[1772610494466,4.51694478,87.31,87.247,10.315]
[1772610494670,4.51694478,87.29,87.221,3.91808829]
[1772610495172,4.51694478,87.29,87.228,10.317]
[1772610495465,298.0,87.348,87.2,4.51694478]
[1772610495466,2.73229564,87.329,87.241,3.91808829]
[1772610496263,4.51694478,87.31,87.244,10.315]
[1772610496570,4.51694478,87.31,87.245,3.91808829]
[1772610497361,4.51694478,87.31,87.249,14.23208829]
[1772610497564,4.51694478,87.32,87.25,3.91808829]
[1772610497763,2.73229564,87.329,87.25,3.91808829]
[1772610497764,4.51694478,87.3,87.25,3.91808829]
[1772610497968,4.51694478,87.32,87.252,3.91808829]
[1772610498366,2.45808825,87.319,87.252,3.91808829]
[1772610498569,2.45808825,87.319,87.241,3.90766417]
[1772610498962,2.45808825,87.319,87.248,10.315]
[1772610500175,2.45808825,87.319,87.26,3.90766417]
[1772610500380,4.51694478,87.33,87.26,3.90766417]
[1772610500777,4.51694478,87.33,87.274,10.311]
[1772610502267,4.51694478,87.33,87.287,10.31]
[1772610502481,2.46653032,87.366,87.288,3.61160847]
[1772610502777,4.51694478,87.34,87.267,3.61160847]
[1772610503169,4.51694478,87.34,87.284,10.31]
[1772610503380,2.46653032,87.359,87.285,3.61160847]
[1772610503769,2.42440491,87.349,87.264,3.61160847]
[1772610503971,4.51694478,87.33,87.264,3.61160847]
[1772610504271,2.42440491,87.329,87.264,3.61160847]
[1772610504973,2.42440491,87.329,87.265,13.44]
[1772610505279,4.51694478,87.35,87.265,13.44]